{"text_format":"3","workbook":"xlsx","n_sheets":1,"sheets":["YENİDEN MODELLEME MALİYETLERİ"],"not_rendered":{"images":2,"defined_names":4},"read":"whole","date_system":"1900"}

{"sheet":"YENİDEN MODELLEME MALİYETLERİ","index":0,"n_rows":28,"n_cols":8,"rows_kept":28,"merged":[[25,1,25,5],[26,1,26,5],[27,1,27,5]]}
[null,"MUTFAĞI YENİDEN MODELLEME MALİYETLERİ ÇALIŞMA SAYFASI"]
[]
[null,"Kategori","Ürünler","Miktar","Tahmini Maliyet","Gerçek Maliyet","Toplam Tahmini Maliyet","Toplam Gerçek Maliyet"]
[null,"Dolaplar","Alt dolaplar: Modüler Standart (doğrusal fit miktarı)",25,{"v":5,"d":"5.00 ₺"},null,{"$f":"Veri[[#This Row],[Miktar]]*Veri[[#This Row],[Tahmini Maliyet]]","v":{"v":125,"d":"125 ₺"}},{"$f":"Veri[[#This Row],[Miktar]]*Veri[[#This Row],[Gerçek Maliyet]]","v":{"v":0,"d":"0 ₺"}}]
[null,"Dolaplar","Üst dolaplar: Modüler Standart (doğrusal fit miktarı)",25,{"v":3.5,"d":"3.50 ₺"},null,{"$f":"Veri[[#This Row],[Miktar]]*Veri[[#This Row],[Tahmini Maliyet]]","v":{"v":87.5,"d":"88 ₺"}},{"$f":"Veri[[#This Row],[Miktar]]*Veri[[#This Row],[Gerçek Maliyet]]","v":{"v":0,"d":"0 ₺"}}]
[null,"Temizlik Gereçleri","Bulaşık makinesi: Standart",1,{"v":250,"d":"250.00 ₺"},null,{"$f":"Veri[[#This Row],[Miktar]]*Veri[[#This Row],[Tahmini Maliyet]]","v":{"v":250,"d":"250 ₺"}},{"$f":"Veri[[#This Row],[Miktar]]*Veri[[#This Row],[Gerçek Maliyet]]","v":{"v":0,"d":"0 ₺"}}]
[null,"Temizlik Gereçleri","Öğütücü: Standart",1,{"v":175,"d":"175.00 ₺"},null,{"$f":"Veri[[#This Row],[Miktar]]*Veri[[#This Row],[Tahmini Maliyet]]","v":{"v":175,"d":"175 ₺"}},{"$f":"Veri[[#This Row],[Miktar]]*Veri[[#This Row],[Gerçek Maliyet]]","v":{"v":0,"d":"0 ₺"}}]
[null,"Pişirme Gereçleri","Aralık: Sürgü Standardı",1,{"v":375,"d":"375.00 ₺"},null,{"$f":"Veri[[#This Row],[Miktar]]*Veri[[#This Row],[Tahmini Maliyet]]","v":{"v":375,"d":"375 ₺"}},{"$f":"Veri[[#This Row],[Miktar]]*Veri[[#This Row],[Gerçek Maliyet]]","v":{"v":0,"d":"0 ₺"}}]
[null,"Pişirme Gereçleri","Mikrodalga: Standart",1,{"v":300,"d":"300.00 ₺"},null,{"$f":"Veri[[#This Row],[Miktar]]*Veri[[#This Row],[Tahmini Maliyet]]","v":{"v":300,"d":"300 ₺"}},{"$f":"Veri[[#This Row],[Miktar]]*Veri[[#This Row],[Gerçek Maliyet]]","v":{"v":0,"d":"0 ₺"}}]
[null,"Sayaçlar","Düz yüzey (doğrusal fit miktarı)",23,{"v":10,"d":"10.00 ₺"},null,{"$f":"Veri[[#This Row],[Miktar]]*Veri[[#This Row],[Tahmini Maliyet]]","v":{"v":230,"d":"230 ₺"}},{"$f":"Veri[[#This Row],[Miktar]]*Veri[[#This Row],[Gerçek Maliyet]]","v":{"v":0,"d":"0 ₺"}}]
[null,"Kapılar","İç: Kaplamalı Som Nüve",1,{"v":65,"d":"65.00 ₺"},null,{"$f":"Veri[[#This Row],[Miktar]]*Veri[[#This Row],[Tahmini Maliyet]]","v":{"v":65,"d":"65 ₺"}},{"$f":"Veri[[#This Row],[Miktar]]*Veri[[#This Row],[Gerçek Maliyet]]","v":{"v":0,"d":"0 ₺"}}]
[null,"Ekstralar","Ekstralar: Anlık Sıcak Su Standardı",1,{"v":120,"d":"120.00 ₺"},null,{"$f":"Veri[[#This Row],[Miktar]]*Veri[[#This Row],[Tahmini Maliyet]]","v":{"v":120,"d":"120 ₺"}},{"$f":"Veri[[#This Row],[Miktar]]*Veri[[#This Row],[Gerçek Maliyet]]","v":{"v":0,"d":"0 ₺"}}]
[null,"Ekstralar","Ekstralar: Sabunluk",1,{"v":40,"d":"40.00 ₺"},null,{"$f":"Veri[[#This Row],[Miktar]]*Veri[[#This Row],[Tahmini Maliyet]]","v":{"v":40,"d":"40 ₺"}},{"$f":"Veri[[#This Row],[Miktar]]*Veri[[#This Row],[Gerçek Maliyet]]","v":{"v":0,"d":"0 ₺"}}]
[null,"Musluklar","Musluk: Mandal, Standart",1,{"v":130,"d":"130.00 ₺"},null,{"$f":"Veri[[#This Row],[Miktar]]*Veri[[#This Row],[Tahmini Maliyet]]","v":{"v":130,"d":"130 ₺"}},{"$f":"Veri[[#This Row],[Miktar]]*Veri[[#This Row],[Gerçek Maliyet]]","v":{"v":0,"d":"0 ₺"}}]
[null,"Döşeme","Laminat (fit kare miktarı)",165,{"v":3.5,"d":"3.50 ₺"},null,{"$f":"Veri[[#This Row],[Miktar]]*Veri[[#This Row],[Tahmini Maliyet]]","v":{"v":577.5,"d":"578 ₺"}},{"$f":"Veri[[#This Row],[Miktar]]*Veri[[#This Row],[Gerçek Maliyet]]","v":{"v":0,"d":"0 ₺"}}]
[null,"Çamaşır Gereçleri","Rondela: Standart",1,{"v":500,"d":"500.00 ₺"},null,{"$f":"Veri[[#This Row],[Miktar]]*Veri[[#This Row],[Tahmini Maliyet]]","v":{"v":500,"d":"500 ₺"}},{"$f":"Veri[[#This Row],[Miktar]]*Veri[[#This Row],[Gerçek Maliyet]]","v":{"v":0,"d":"0 ₺"}}]
[null,"Çamaşır Gereçleri","Kurutucu: Standart",1,{"v":375,"d":"375.00 ₺"},null,{"$f":"Veri[[#This Row],[Miktar]]*Veri[[#This Row],[Tahmini Maliyet]]","v":{"v":375,"d":"375 ₺"}},{"$f":"Veri[[#This Row],[Miktar]]*Veri[[#This Row],[Gerçek Maliyet]]","v":{"v":0,"d":"0 ₺"}}]
[null,"Aydınlatma","Aydınlatma: Girintili Silindir",4,{"v":35,"d":"35.00 ₺"},null,{"$f":"Veri[[#This Row],[Miktar]]*Veri[[#This Row],[Tahmini Maliyet]]","v":{"v":140,"d":"140 ₺"}},{"$f":"Veri[[#This Row],[Miktar]]*Veri[[#This Row],[Gerçek Maliyet]]","v":{"v":0,"d":"0 ₺"}}]
[null,"Buzdolapları","Buzdolabı: Bağlantısız, Lüks",1,{"v":1200,"d":"1,200.00 ₺"},null,{"$f":"Veri[[#This Row],[Miktar]]*Veri[[#This Row],[Tahmini Maliyet]]","v":{"v":1200,"d":"1,200 ₺"}},{"$f":"Veri[[#This Row],[Miktar]]*Veri[[#This Row],[Gerçek Maliyet]]","v":{"v":0,"d":"0 ₺"}}]
[null,"Lavabolar","Çift kaseli Paslanmaz Çelik Lüks",1,{"v":125,"d":"125.00 ₺"},null,{"$f":"Veri[[#This Row],[Miktar]]*Veri[[#This Row],[Tahmini Maliyet]]","v":{"v":125,"d":"125 ₺"}},{"$f":"Veri[[#This Row],[Miktar]]*Veri[[#This Row],[Gerçek Maliyet]]","v":{"v":0,"d":"0 ₺"}}]
[null,"Havalandırma","Davlumbaz birimi: Kanallı Standart",1,{"v":180,"d":"180.00 ₺"},null,{"$f":"Veri[[#This Row],[Miktar]]*Veri[[#This Row],[Tahmini Maliyet]]","v":{"v":180,"d":"180 ₺"}},{"$f":"Veri[[#This Row],[Miktar]]*Veri[[#This Row],[Gerçek Maliyet]]","v":{"v":0,"d":"0 ₺"}}]
[null,"Duvarlar","Duvar kaplaması (fit kare miktarı)",70,{"v":2,"d":"2.00 ₺"},null,{"$f":"Veri[[#This Row],[Miktar]]*Veri[[#This Row],[Tahmini Maliyet]]","v":{"v":140,"d":"140 ₺"}},{"$f":"Veri[[#This Row],[Miktar]]*Veri[[#This Row],[Gerçek Maliyet]]","v":{"v":0,"d":"0 ₺"}}]
[null,"Pencereler","Sürgü",2,{"v":120,"d":"120.00 ₺"},null,{"$f":"Veri[[#This Row],[Miktar]]*Veri[[#This Row],[Tahmini Maliyet]]","v":{"v":240,"d":"240 ₺"}},{"$f":"Veri[[#This Row],[Miktar]]*Veri[[#This Row],[Gerçek Maliyet]]","v":{"v":0,"d":"0 ₺"}}]
[null,"Diğer",{"$nulls":4},{"$f":"Veri[[#This Row],[Miktar]]*Veri[[#This Row],[Tahmini Maliyet]]","v":{"v":0,"d":"0 ₺"}},{"$f":"Veri[[#This Row],[Miktar]]*Veri[[#This Row],[Gerçek Maliyet]]","v":{"v":0,"d":"0 ₺"}}]
[null,"Toplam",null,null,{"$f":"SUBTOTAL(109,Veri[Tahmini Maliyet])","v":{"v":4014,"d":"4,014.00 ₺"}},{"$f":"SUBTOTAL(109,Veri[Gerçek Maliyet])","v":{"v":0,"d":"0.00 ₺"}},{"$f":"SUBTOTAL(109,Veri[Toplam Tahmini Maliyet])","v":{"v":5375,"d":"5,375.00 ₺"}},{"$f":"SUBTOTAL(109,Veri[Toplam Gerçek Maliyet])","v":{"v":0,"d":"0.00 ₺"}}]
[null,"Ara toplam",{"$nulls":4},{"$f":"SUBTOTAL(109,Veri[Toplam Tahmini Maliyet])","v":{"v":5375,"d":"5,375.00 ₺"}},{"$f":"SUBTOTAL(109,Veri[Toplam Gerçek Maliyet])","v":{"v":0,"d":"0.00 ₺"}}]
[null,"Beklenmeyen Maliyetler- %30 ekle",{"$nulls":4},{"$f":"G26*0.3","v":{"v":1612.5,"d":"1,612.50 ₺"}},{"$f":"H26*0.3","v":{"v":0,"d":"0.00 ₺"}}]
[null,"Toplam",{"$nulls":4},{"$f":"SUM(G26:G27)","v":{"v":6987.5,"d":"6,987.50 ₺"}},{"$f":"SUM(H26:H27)","v":{"v":0,"d":"0.00 ₺"}}]